Workbook

Sheet Cover Page
D1: Add company logo
N2: Version 20.1
B8: Add photo
N13: Notes:
N14: This template may require adjustments by individual operators to meet specific reporting requirements as defined in the site Permit(s)
B29: Annual Performance Report 2020
B31: Permit EPR/JP3135DK
B33: Kemsley Generating Station
B35: K3 CHP
B37: K3 CHP Operations Limited
B39: Year: | C39: 2020
B41: Address: | C41: Barge Way, Sittingbourne, Kent, ME10 2FP
B43: Tel: | C43: 01795 685740
B45: Email: | C45: www.wtikemsley.co.uk
B47: Prepared by: | C47: Michelle Dunbar | F47: Position: | G47: Compliance Manager
B49: Approved by: | C49: Stuart Kirk | F49: Position: | G49: Plant Manager
B51: Version: | C51: 1
B53: Issue Date: | C53: 29.01.2021

Sheet Contents
A1: =+'Cover Page'!$B$29 -> Annual Performance Report 2020 | E1: =+'Cover Page'!$B$33 -> Kemsley Generating Station
A3: Contents | K3: Notes:
A4: Section | B4: Subject | H4: Page | K4: Section references and Page nos. to be inserted
B5: Facility Information | H5: 3 | K5: Sections and Subjects may require adjustment by individual operators to meet specific reporting requirements as defined in the sites Permit(s)
B6: Operational Data | H6: 4
B7: Operational Summary | H7: 6
B8: Performance Form 1 | H8: 7
B9: Energy Form 1 | H9: 8
B10: Permit Compliance | H10: 9
B11: Improvements | H11: 10
B12: Public Liasion | H12: 11
B13: Residue Quality - Optional | H13: 12
B14: Emissions to Water | H14: 13
B15: Emissions to Air (periodically monitored) | H15: 14
B16: Emissions to Air (continuously monitored) | H16: 15
B17: Hydrogen Chloride emissions | H17: 16
B18: Sulphur Dioxdie emsissions | H18: 17
B19: Oxides of Notrigen emissions | H19: 18
B20: Total Organic Carbon emissions | H20: 19
B21: Particulate Matter emissions | H21: 20
B22: Carbon Monoxide emissions - half hour average | H22: 21
B23: Carbon Monoxide emissions - 10 minute average | H23: 22
B24: Ammonia emissions | H24: 23
A26: Version Control
A27: Section | B27: Information | H27: Date
A34: Distribution
A35: Copy | B35: Name, Role | H35: No.
A44: This report is required under the Industrial Emissions Directive’s Article 55(2) requirements on reporting and public information on waste incineration plants and co-incineration plants, which require the operator to produce an annual report on the functioning and monitoring of the plant and make it available to the public.

Sheet Facility Info
A1: =+'Cover Page'!$B$29 -> Annual Performance Report 2020 | E1: =+'Cover Page'!$B$33 -> Kemsley Generating Station
A3: Plant Description and Design | K3: Notes:
A5: The Kemsley Energy Recovery Facility (ERF) recovers value (primarily in the form of energy, but also recycled materials in the form of incinerator bottom ash aggregate (IBAA) and metals recovered from the incinerator bottom ash (IBA) from up to 657,000 tonnes per annum (tpa) residual waste in two incineration lines. The imported waste is primarily commercial and industrial (C&I) waste and residual Municipal Solid Waste (MSW), collected by private waste management companies. The Installation forms part of the Kemsley Paper Mill installation which currently comprises the DS Smith Kemsley Paper Mill and the E.On combined heat and power facility. It is located at grid reference 592170,166640 which is to the east of Kemsley, 3 km north of Sittingbourne and 2.5 km south east of Iwade. Planning permission for the site was granted in 2012 and construction of the facility has been completed. Some landscaping works remain, along with correction of various minor snags and defects. The existing permit (Permit number EPR/JP3135DK) allows the facility to accept municipal, industrial and commercial waste and undertake the following activities: • receipt and storage of waste pending processing; • electricity and steam generation; and • disposal of waste arising (incinerator bottom ash (IBA) and air pollution control residues (APCr)). | K5: Include summary of plant design, design capacity, no. of combustion lines, electrical and heat capacity and any other general information that descibes the facility, its location and purpose
A20: Summary of Operational Processes and Procedures
A22: The facility processes waste using air cooled, moving grate technology. The energy recovered from the combustion of waste is utilised (in the form of high-pressure steam) to produce electrical power through a steam turbine and generator unit. The facility has combined heat and power (CHP) capability and supplies the adjacent DS Smith paper mill with steam. The combustion of waste releases flue gases which are treated in order to comply with the requirements of the Industrial Emissions Directive and the permit. In addition to primary and secondary air injection, additional support in combustion is provided through tertiary air injection or flue gas recirculation. Urea is added at various stages of the boiler’s combustion chamber (first pass) to reduce nitrogen oxides (NOx). Hydrated Lime and powdered activated carbon (PAC) are used within the dry flue gas treatment (FGT) system. The lime reduces acid gas emissions while the activated carbon reduces mercury and the formation of dioxins/furans. The by-products from both reactions are captured in the fabric filter as Air Pollution Control Residues (APCR). The facility is designed to export approximately 45MW of electricity to the grid, and 55 MWth of steam to the mill - when the paper mill is running at capacity. | K22: Include summary of key processes and procedures such as (but not limited to); waste reception, control rooms, grate, bed and bolier, energy & heat generation, cooling systems, residue management, emission controls, health and safety systems, maintenance

Sheet Operational Data
A1: =+'Cover Page'!$B$29 -> Annual Performance Report 2020 | E1: =+'Cover Page'!$B$33 -> Kemsley Generating Station
A3: Operational Data | K3: Notes:
A4: Plant Size | B4: 657000 | D4: tonnes pa | E4: 55 | F4: MWth | G4: 45 | H4: MWe | K4: * - RDF to include SRF
A5: No. of combustion lines | B5: 2 | D5: No. of Turbines: | F5: 1 | K5: ** - CHP plants only
K6: 2020 updates include; heat in MWh, water in Litres, NCV in MJ/kg
A7: Waste types received | B7: Unit | C7: Q1 | D7: Q2 | E7: Q3 | F7: Q4 | G7: Year Total | H7: %
A8: Household / Local Authority | B8: tonnes | C8: 3142.74 | D8: 56945 | E8: 54731.22 | F8: 63470.66 | G8: =SUM(C8:F8) -> 178289.62 | H8: =IF(G8>0,G8/$G$18,"-") -> 0.4252945682 | K8: Availabiity Definition: 'the availability of a line is to be calculated by the number of hours the line reported Continuously Monitored emission levels to the Regulator through the calendar year divided by the total number of hours in that year. The overall plant availability is calculated as the Mean of all lines in the plant. For clarity this includes periods of Other Than Normal Operating Conditions (OTNOC) and abnormal operation.' Rationale: The primary function of an Energy from Waste facility is the disposal of waste. It follows therefore that the availability of a plant is determined by the period of time a facility spends undertaking this activity.
A9: Commercial & Industrial | C9: 7045.75 | D9: 39442 | E9: 76580 | F9: 65863.02 | G9: =SUM(C9:F9) -> 188930.77 | H9: 0.4506781172
A10: Hazardous | G10: 0 | H10: -
A11: Clinical | G11: 0 | H11: -
A12: Waste wood (biomass) | G12: 0 | H12: -
A13: Refuse Derived Fuel * - H'hold/LA | G13: =SUM(C13:F13) -> 0 | H13: -
A14: Refuse Derived Fuel * - C&I | C14: 1834.9 | D14: 14478 | E14: 15437.62 | F14: 20241.82 | G14: 51992.34 | H14: 0.1240232594
A15: Other [Please specify] | G15: 0 | H15: -
A16: Other [Please specify]
A17: Other [Please specify]
A18: Total waste received | C18: =SUM(C8:C17) -> 12023.39 | D18: 110866.7 | E18: =SUM(E8:E17) -> 146748.84 | F18: =SUM(F8:F17) -> 149575.5 | G18: =SUM(C18:F18) -> 419214.43 | H18: =IF(G18>0,G18/$G$18,"-") -> 1
A19: Rejected Waste | C19: 35.34 | D19: 65.52 | E19: 3.66 | F19: 38.76 | G19: =SUM(C19:F19) -> 143.28 | H19: =IF(G19>0,G19/$G$18,"-") -> 0.0003417821281
A20: Unprocessed waste transferred out
A21: Total waste combusted | C21: 10775 | D21: 106819.6 | E21: 135657.11 | F21: 157203.3403 | G21: =SUM(C21:F21) -> 410455.0503 | H21: =IF(G21>0,G21/$G$21,"-") -> 1
A22: Total waste combusted - Q3 and Q4 | G22: =SUM(E21:F21) -> 292860.4503
A24: Energy Useage / Export | B24: Unit | C24: Q1 | D24: Q2 | E24: Q3 | F24: Q4 | G24: Year Total | H24: KWh/te
A25: Power Generated | B25: MWh | E25: 99019.48 | F25: 112855.1646 | G25: =SUM(C25:F25) -> 211874.6446 | H25: =IF(G25>0,G25*1000/$G$22,"-") -> 723.4662255
A26: Power Exported | E26: 87438 | F26: 100733 | G26: =SUM(C26:F26) -> 188171 | H26: =IF(G26>0,G26*1000/$G$22,"-") -> 642.5278654
A27: Power Used on site | G27: =SUM(C27:F27) -> 0 | H27: =IF(G27>0,G27*1000/$G$22,"-") -> -
A28: Power Imported | E28: 668 | F28: 99 | G28: 767 | H28: =IF(G28>0,G28*1000/$G$22,"-") -> 2.618994812
A29: Parasitic Load | B29: % | C29: =IF(C25>0,1-C26/(C25+C28),"-") -> - | D29: =IF(D25>0,1-D26/(D25+D28),"-") -> - | E29: =IF(E25>0,1-E26/(E25+E28),"-") -> 0.1228788209 | F29: =IF(F25>0,1-F26/(F25+F28),"-") -> 0.1081957858 | G29: =IF(G25>0,1-G26/(G25+G28),"-") -> 0.115079267
A30: Thermal Energy Produced ** | B30: MWh | E30: 431028.0635 | F30: 467241 | G30: =SUM(C30:F30) -> 898269.0635 | H30: =IF(G30>0,G30*1000/$G$22,"-") -> 3067.225576
A31: Thermal Energy Exported ** | E31: 43425.99 | F31: 79243 | G31: 122668.99 | H31: =IF(G31>0,G31*1000/$G$22,"-") -> 418.8649914
A32: R1 value | G32: Design / Operational / n/a
A34: Waste Disposal & Recovery | B34: Unit | C34: Q1 | D34: Q2 | E34: Q3 | F34: Q4 | G34: Year Total | H34: % inputs
A35: APC Residues - produced | B35: tonnes | C35: 227.72 | D35: 3484.82 | E35: 4218.68 | F35: 4516 | G35: =SUM(C35:F35) -> 12447.22 | H35: =IF(G35>0,G35/$G$21,"-") -> 0.03032541563
A36: IBA - produced | C36: 2057.06 | D36: 25760.96 | E36: 32908.06 | F36: 32906.29 | G36: 93632.37 | H36: =IF(G36>0,G36/$G$21,"-") -> 0.2281184503
A37: Metals recycling | D37: 311.82 | E37: 410.86 | F37: 276.23 | G37: =SUM(C37:F37) -> 998.91 | H37: =IF(G37>0,G37/$G$21,"-") -> 0.002433664781
A38: Water - 16 10 02 | C38: 3528.9 | D38: 4025 | E38: 735 | F38: 687 | G38: =SUM(C38:F38) -> 8975.9 | H38: =IF(G38>0,G38/$G$21,"-") -> 0.02186816801
A39: 13 05 08 | C39: 12 | D39: 0 | E39: 0 | F39: 0 | G39: 12 | H39: =IF(G39>0,G39/$G$21,"-") -> 2.923584444e-05
A40: Other | C40: 0 | D40: 0 | E40: 0 | F40: 0 | G40: 0 | H40: =IF(G40>0,G40/$G$18,"-") -> -
A42: Raw Material Usage | B42: Unit | C42: Q1 | D42: Q2 | E42: Q3 | F42: Q4 | G42: Year Total | H42: kg or Ltr /te
A43: Mains Water | B43: ltrs | E43: 7635 | F43: 4502 | G43: =SUM(C43:F43) -> 12137 | H43: =IF(G43>0,G43/$G$21,"-") -> 0.02956962033
A44: Other Water | B44: ltrs | G44: 0 | H44: =IF(G44>0,G44/$G$18,"-") -> -
A45: Ammonia | B45: kgs | G45: 0 | H45: =IF(G45>0,G45/$G$18,"-") -> -
A46: Urea | B46: kgs | E46: 169977 | F46: 160154.6635 | G46: =SUM(C46:F46) -> 330131.6635 | H46: =IF(G46>0,G46/$G$22,"-") -> 1.12726612
A47: Activated Carbon | B47: kgs | E47: 43118 | F47: 50551 | G47: 93669 | H47: =IF(G47>0,G47/$G$22,"-") -> 0.3198417536
A48: Lime / hydrated lime | B48: kgs | E48: 2111 | F48: 2188.905 | G48: 4299.905 | H48: =IF(G48>0,G48/$G$22,"-") -> 0.01468243662
A49: Fuel oil | B49: ltrs | E49: 524357 | F49: 164629.9 | G49: 688986.9 | H49: =IF(G49>0,G49/$G$22,"-") -> 2.352611625 | N49: Oct | O49: 10573
A50: Gas | B50: cf | C50: 0 | D50: 0 | E50: 0 | F50: 0 | G50: 0 | N50: Nov | O50: 10964
A51: Other | C51: 0 | D51: 0 | E51: 0 | F51: 0 | G51: 0 | N51: Dec | O51: 10569
O52: =AVERAGE(O49:O51) -> 10702
A53: Summary | B53: Line/Unit | C53: Q1 | D53: Q2 | E53: Q3 | F53: Q4 | G53: Year Total | J53: Hrs in year *
A54: Availability of waste combustion by line, hrs | B54: 1 | E54: 1693 | F54: 2199 | G54: =SUM(C54:F54) -> 3892 | H54: =G54/J54 -> 0.959566075 | J54: 4056
B55: 2 | E55: 1752 | F55: 2174 | G55: 3926 | H55: =G55/J54 -> 0.9679487179 | N55: jul | O55: 11997
B56: 3 | G56: 0 | H56: x % | N56: aug | O56: 10202
B57: 4 | G57: 0 | H57: x % | J57: *From July 2020, post takeover | N57: sept | O57: 10150
B58: 5 | G58: =SUM(C58:F58) -> 0 | H58: x % | O58: =AVERAGE(O55:O57) -> 10783
A59: Overall Availability, mean avg. of all lines, hrs | G59: =AVERAGE(G54:G55) -> 3909 | H59: =G59/J54 -> 0.9637573964
A60: Hours of turbine operations, hrs | B60: 1 | E60: 1688 | F60: 2190 | G60: 3878 | H60: =G60/J54 -> 0.9561143984 | N60: apr
A61: Hours of turbine operations, hrs | B61: 2 | G61: 0 | H61: x % | N61: may
A62: Hours of heat / steam export | E62: 1816 | F62: 2195 | G62: 4011 | H62: =IF(B62>0,G61/J54,"n/a") -> n/a | N62: jun | O62: 11217
A63: Net Calorific Value of waste | B63: MJ/kg | C63: 4056 (hours in year - Q3 and Q4) | E63: 10783 | F63: 10702 | H63: -
A64: Abnormal Events | B64: qty. | C64: 0 | D64: 0 | E64: 0 | F64: 0 | G64: 0 | H64: =IF(G64>0,"yes","no") -> no
A65: Abnormal operation | B65: hours | C65: 0 | D65: 0 | E65: 0 | F65: 0 | G65: 0 | H65: =+(G65)/J54 -> 0
A66: Permit (ELV) Breaches | B66: qty. | C66: 1 | D66: 5 | E66: 3 | G66: 9 | H66: =IF(G66>0,"yes","no") -> yes

Sheet Operational Summary
A1: =+'Cover Page'!$B$29 -> Annual Performance Report 2020 | E1: =+'Cover Page'!$B$33 -> Kemsley Generating Station
A3: Summary of Plant Operations and Maintenance during the reporting year | K3: Notes:
A5: Following commercial operations of the facility in July 2020 there have been no major maintenance or Operational activities other than completing legacy defects and new warranty items, within the two year warranty period and optimising the process as per design specification. Detailed PPM (planned preventative maintenance) activities have been produced and managed within the companies CMMS (Computerised Maintenance management System), which comply with the original equipment manufacturers recommendations for preventative maintenance. This will ensure the plant is operated at high levels of availability and within environmental limits. Operational routines have been developed to ensure safe and Environmentally compliant operation of the facility that include, but not limited to: Fire detection and suppression systems, receipt of consumable materials for the abatement and treatment of process effluent and gasses, safe start-up and shut-down of the boiler plants, emergency response plans and Environmental compliance training. A management of change process has been established since commercial operation that evaluates and manages upgrades to the facilities installed equipment. One such project relating to the Continuous Emissions Measurement System (CEMS) commenced the concept phase in 2020 and will be completed in Q2 2021 . When complete, the installation of a fourth CEM unit will enable Wheelabrator Kemsley to have 100% redundancy on the CEMS for both boiler plants. | K5: Include summary of key operational and/or maintenance activity undertaken in the year, such as any major component upgrades and/or replacements
A20: Summary of Residue Handling for the reporting year
A22: APCr is transferred to Augean (Peterborough) where it is treated and landfilled. WTI continue to investigate opportunities for recycling of this material. IBA is transferred to Fortis IBA (Andover), where it is recycled. Metals are removed and IBAA is produced for use in construction. The IBA is sampled and analysis undertaken twice monthly to assess its suitability for reporocessing at Fortis. Core hazard properties are assessed, and monthly samples are analyseed as per compliance requirements of the permit. APCR samples are also taken monthly in line with permit compliance requirements. IBA has consistently proven to be non-hazardous, with no failures during 2020. | K22: Include in here a summary of residue handling regimes and destinations

Sheet Perf. Form 1
A1: =+'Cover Page'!C39 -> 2020 | B1: Annual Reporting Performance Form 1
A3: =+'Cover Page'!B31 -> Permit EPR/JP3135DK | F3: Operator: | G3: =+'Cover Page'!B37:I37 -> 0
A4: Facility: | B4: =+'Cover Page'!B33:I33 -> Kemsley Generating Station | F4: Form: | G4: Performance 1
A6: Reporting Period from: | D6: March* | F6: to: | G6: December
A8: =+A1 -> 2020 | B8: Annual Reporting of Waste Disposal and Recovery
A9: Waste Description | C9: Disposal Route(s) | E9: Disposal Tonnes | G9: Recovery Tonnes | I9: % / tonne of waste incinerated
A10: 1) Hazardous Wastes
A11: APC Residues | C11: D09 | E11: 12447.22 | G11: 0 | I11: =IF((E11+G11)>0,(E11+G11)/'Operational Data'!$G$21, "-") -> 0.03032541563
A12: IBA | E12: 0 | G12: 0 | I12: 0
I13: =IF((E13+G13)>0,(E13+G13)/'Operational Data'!$G$21, "-") -> -
I14: =IF((E14+G14)>0,(E14+G14)/'Operational Data'!$G$21, "-") -> -
A15: Total Hazardous Waste | E15: =SUM(E11:F14) -> 12447.22 | G15: =SUM(G11:H14) -> 0 | I15: =IF((E15+G15)>0,(E15+G15)/'Operational Data'!$G$21, "-") -> 0.03032541563
A17: 2) Non-Hazardous Wastes
A18: IBA | C18: R5 | G18: 93632.37 | I18: =IF((E18+G18)>0,(E18+G18)/'Operational Data'!$G$21, "-") -> 0.2281184503
A19: Ferrous Metal | C19: R4 | G19: 999 | I19: =IF((E19+G19)>0,(E19+G19)/'Operational Data'!$G$21, "-") -> 0.002433884049
A20: Process Water | C20: D06 | G20: 8975.9 | I20: =IF((E20+G20)>0,(E20+G20)/'Operational Data'!$G$21, "-") -> 0.02186816801
I21: =IF((E21+G21)>0,(E21+G21)/'Operational Data'!$G$21, "-") -> -
I22: =IF((E22+G22)>0,(E22+G22)/'Operational Data'!$G$21, "-") -> -
A23: Total Non-Hazardous Waste | E23: =SUM(E18:F22) -> 0 | G23: =SUM(G18:H22) -> 103607.27 | I23: =IF((E23+G23)>0,(E23+G23)/'Operational Data'!$G$21, "-") -> 0.2524205024
A24: TOTAL WASTE | E24: =+E23+E15 -> 12447.22 | G24: =+G23+G15 -> 103607.27 | I24: =IF((E24+G24)>0,(E24+G24)/'Operational Data'!$G$21, "-") -> 0.282745918
A26: Operator’s comments :
A27: Calculations include all waste from start of commissioning on waste on 12 March 2020
A31: =+A1 -> 2020 | B31: Annual Reporting of Water and Other Raw Material Usage
A32: Raw Material | E32: Usage | G32: Unit | H32: Specific Useage | J32: Unit
A33: Mains Water | E33: =+'Operational Data'!G43 -> 12137 | G33: m3 | H33: =IF(E33>0,E33/'Operational Data'!$G$22,"-") -> 0.04144294658 | J33: m3/te
A34: Total Water | E34: =+'Operational Data'!G44+'Operational Data'!G43 -> 12137 | G34: m3 | H34: =IF(E34>0,E34/'Operational Data'!$G$22,"-") -> 0.04144294658 | J34: m3/te
A35: Urea / Ammonia | E35: =+'Operational Data'!G46 -> 330131.6635 | G35: kg | H35: =IF(E35>0,E35/'Operational Data'!$G$22,"-") -> 1.12726612 | J35: kg/te
A36: Activated Carbon | E36: =+'Operational Data'!G47 -> 93669 | G36: kg | H36: =IF(E36>0,E36/'Operational Data'!$G$22,"-") -> 0.3198417536 | J36: kg/te
A37: Lime / hydrated lime / Sodium Bicarb. | E37: =+'Operational Data'!G48 -> 4299.905 | G37: kg | H37: =IF(E37>0,E37/'Operational Data'!$G$22,"-") -> 0.01468243662 | J37: kg/te
A39: Operator’s comments :
A40: The raw material specific usage has been calculated using data from Q3 and Q4 so as to provide representative figures (as handover was on the 16th July 2020). Similarly for operating hours - the hours are taken from Q3 and Q4.
A43: =+A31 -> 2020 | B43: Annual Reporting of other performance indicators
A44: Parameter | C44: Results by Line
C45: A1 | D45: A2 | E45: A3 | F45: A4 | G45: A5 | I45: Turbine 1 | J45: Turbine 2
A46: Operating hours for the year, hours | C46: 3892 | D46: 3926 | I46: 3878
A47: Number of periods of abnormal operation, qty. | C47: 0 | D47: 0
A48: Cumulative hours of abnormal operation for this year, hours | C48: 0 | D48: 0
A50: Operator’s comments :
A51: *The raw material specific usage has been calculated using data from Q3 and Q4 so as to provide represntative figures (as handover was on the 16th July 2020). Similarly for operating hours - the hours are taken from Q3 and Q4. Also ref. Operational data - the figures used are Q3 and Q4, hours in year are for these two quarters - used to calculate availability.
A54: Signed: | G54: Date:

Sheet Energy Form 1
A1: =+'Cover Page'!C39 -> 2020 | B1: Annual Reporting of Energy Usage/Export
A3: =+'Cover Page'!B31 -> Permit EPR/JP3135DK | F3: Operator: | G3: =+'Cover Page'!B37:I37 -> 0
A5: Facility: | B5: =+'Cover Page'!B33:I33 -> Kemsley Generating Station | F5: Form: | G5: Energy 1
A7: Reporting Period from: | D7: =+'Perf. Form 1'!D6:E6 -> March* | F7: to: | G7: =+'Perf. Form 1'!G6:H6 -> December
A9: Energy Source | D9: Energy Usage | F9: Unit | G9: Specific Useage (KWh/tonne incinerated
A10: Electricity Produced | D10: =+'Operational Data'!G25 -> 211874.6446 | F10: MWh | G10: =+'Operational Data'!H25 -> 723.4662255
A11: Electricity Imported | D11: =+'Operational Data'!G28 -> 767 | F11: MWh | G11: =+'Operational Data'!H28 -> 2.618994812
A12: Electricity Exported | D12: =+'Operational Data'!G26 -> 188171 | F12: MWh | G12: =+'Operational Data'!H26 -> 642.5278654
A13: Gas Oil | D13: ='Operational Data'!G49*0.82/1000 -> 564.969258 | F13: tonnes
A14: Steam/hot water exported | D14: =+'Operational Data'!G31 -> 122668.99 | F14: GWh | G14: =+'Operational Data'!H31 -> 418.8649914
A18: Operator’s comments :
A19: *Data included is from Q3 and Q4, due to commissioning having been carried out prior to this. The data reported is representative of 'normal' operation of the facility. Data from Q2 has been submitted to the Agency and is available on request.
A29: Signed: | G29: Date:

Sheet Permit Compliance
A1: =+'Cover Page'!$B$29 -> Annual Performance Report 2020 | C1: =+'Cover Page'!$B$33 -> Kemsley Generating Station
A3: Summary of Permit Compliance
A5: Compliance with permit limits for continuously monitored pollutants
A7: The plant met its emission limits as shown in the table below:
A8: Substance | C8: % time compliant during operation | G8: Notes:
C9: Half-hourly | D9: Daily | G9: Report to 2 decimal places, i.e. xx.xx% Please provide a brief summary of each notification or non-compliance in the table (rather than just referring to notifications that were sent to the Regulator).
A10: Particulates | C10: 1 | D10: 1
A11: Oxides of nitrogen | C11: 1 | D11: 1
A12: Sulphur dioxide | C12: 1 | D12: 1
A13: Carbon monoxide | C13: 0.9994 | D13: 1
A14: Total organic carbon | C14: 1 | D14: 1
A15: Hydrogen chloride | C15: 1 | D15: 1
A16: Hydrogen fluoride | C16: 1 | D16: 1
A19: Summary of any notifications or non-compliances under the permit
A20: Date | B20: Summary of notification or non-compliance [including Line/Reference] | C20: Reason | D20: Measures taken to prevent reoccurrence
A21: 25.03.2020 | B21: ELV breach | C21: L1 CO half hour average 15h00-15h30, 896.97mgNm3 | D21: Occurred during commissioining
A22: 05.06.2020 | B22: TOC Data loss | C22: 6 hours TOC data lost 2h00 - 08h00 | D22: Re-training of EPC contractor staff
A23: 15.06.2020 | B23: ELV breach | C23: L1 CO half hour average 0800-0829, 220.88mgNm3 | D23: Mixing of waste and waste inspections carried out - part of procedures
A24: 15.06.2020 | B24: ELV breach | C24: L1 CO half hour average 1030-1059, 174.06mgNm3 | D24: Mixing of waste and waste inspections carried out - part of procedures
A25: 17.06.2020 | B25: TOC Data loss | C25: 2 hours TOC data lost for L1 & L2, 03:30 - 05:00 | D25: Fault with Hydrogen cylinders and connection to FID investigated.
A26: 22.06.2020 | B26: ELV breach | C26: L2 CO half hour average 09:30-10:00, 101.25mg/nm3 | D26: Mixing of waste and waste inspections carried out - part of procedures | E26: Mixing of waste and waste inspections carried out
A27: 24.06.2020 | B27: ELV breach | C27: L2 CO half hour average 12:30-12:59, 107.42mg/nm3 | D27: Mixing of waste and waste inspections carried out - part of procedures | E27: Mixing of waste and waste inspections carried out
A28: 30.06.2020 | B28: ELV breach | C28: L2 CO half hour average 10:00-10:29, 104.06mg/nm3 | D28: Mixing of waste and waste inspections carried out - part of procedures | E28: Mixing of waste and waste inspections carried out
A29: 07.07.2020 | B29: ELV breach | C29: L2 CO half hour average 19:30-19:59, 151.80mg/nm3 | D29: Mixing of waste and waste inspections carried out - part of procedures | E29: Mixing of waste and waste inspections carried out
A30: 20.07.2020 | B30: TOC Data loss | C30: TOC data loss on L1 & L2, 12:09 - 12:23 | D30: H leak occurred during H bottle change. Amended SOP drafted to be followed until leak repaired.
A31: 16.08.2020 | B31: ELV breach | C31: L2 CO half hour average 04:00-04:29, 117.82mg/nm3 | D31: Mixing of waste and waste inspections carried out - part of procedures | E31: Mixing of waste and waste inspections carried out
A32: 16.08.2020 | B32: ELV breach | C32: L2 CO half hour average 12:30-12:59, 462.81mg/nm3 | D32: Mixing of waste and waste inspections carried out - part of procedures | E32: Mixing of waste and waste inspections carried out
A33: 30.09.2020 | B33: Data Loss | C33: Data loss on L2 during QAL3 when standby did not switch over | D33: QAL3 procedure amended to include manual switchover to ensure standby is recording data throughout the process.
A34: 02.11.2020 | B34: Low CO readings | C34: CO readings recorded <0 between 08:30 and 20:00 02.11.2020 | D34: RASOP created to perform spot check on daily background checks, ensure N pressure at correct level, alarms to be added to CDAS software, purchase of second standby analyser.
A35: 20.11.2020 | B35: Low TOC readings | C35: TOC readings recorded <0 between 19:00 19.11.2020 and 09:00 20.11.2020 | D35: As above. Service engineer will also be required to monitor readings until the analyser has stabilised (incident occurred directly after a service visit).
A38: Summary of any complaints received and actions to taken to resolve them.
A39: Date | B39: Summary of complaint [including Line/Reference] | C39: Reason * | D39: Measures taken to prevent reoccurrence
A40: 26.03.2020 | B40: Black smoke from A1/A2 | C40: No detail provided. Email and phone conversation with EA officer. Unsubstantiated | D40: CEMS data and photographs covering the time period in question provided to the EA. No visible evidence of smoke in the images.
A41: 26.06.2020 | B41: Noise - NIRS 1816651 | C41: A resident complained to the EA about a noise - similar to a fan - causing disturbance within their area. The complaint was not directed at Kemsley specifically but was suspected of coming from the direction of DS Smith/ K3 (only heard when Northerly wind was blowing). We were informed by the EA inspector during a call discussiong IBA categorisation. | D41: Kemsley have investigated and noted an audible noise in the vicinity of the complaint (on 26/06). Further investigation of possible links to K3 plant operations was not found. Kemsley was in contact with the complainant regularly, and Mr Moran stated that he'd not heard the noise since (as wind had not been from Notherly direction since the complaint was first lodged) K3 informed Mr Moran that Kemsley had closed the complaint on the 27/07/2020, and the information was forwarded on to the EA inspector .
A42: 14.10.2020 | B42: Noise | C42: As above - noise said to be coming from K3/ DS Smith. K3 contacted by EA inspector | D42: Investigation indicated no links to K3 plant operations. Wind was easterly therefore noise from the general direction of K3 and DS Smith would have been audible to complainant.
A43: 08.12.2020 | B43: Black smoke from A1/A2 - NIRS 1869646 | C43: Complaint regarding 'black smoke' logged with EA | D43: CEMS data covering 0//12/2020 24 hour period provided to the EA as well as photographs throughout the day in querstion. No evidence in CEMS data or photographs to substantiate the claim..
C45: * including whether substantiated by the operator or the EA

Sheet Improvements
A1: =+'Cover Page'!$B$29 -> Annual Performance Report 2020 | E1: =+'Cover Page'!$B$33 -> Kemsley Generating Station
A3: Summary of Plant Improvements
A5: Summary of any efficiency improvements that have been completed within the year.
A6: N/A. As the plant was commisioined during the first half of 2020, efficiency improvement opportunities are yet to be identified. R1 application to be submitted Q1 2021.
A16: Summary of any permit improvement conditions that have been completed within the year and the resulting environmental benefits.
A17: Improvement conditions relating to commisioning of the plant were submitted in 2020. - IC2: Commissioning report - IC3: Performance and optimisation of the SNCR system - IC5 - T2S (Residence time) testing report These reports provide evidence that the plant has been installed and operated as per design/ permit requirements. Awaiting response/ confirmation of discharge.
A27: Summary of any changes to the plant or operating techniques which required a variation to the permit and a summary of the resulting environmental impact.
A28: A varied permit was issued on 29.07.2020. This included an increase in throughput tonnages from 550,000tpa to 657,000tpa. The modelling carried out to support the variation application indicted no significant environmental impact. The variation also included a change from the half-hour average for CO (100mg/nm3) to the 10-minute average (at 150mg/nm3). This has resulted in no reportable CO permit breaches since implementation in September, as the plant CO emissions have been compliant with the IED requirement of 95% compliance with the ELV.
A38: Summary of any other improvements made to the plant or planned to be made and a summary of the resulting environmental benefits.
A39: The facility has procured a second standby CEM to ensure no data is lost during malfunction of either of the main CEMs on Line 1 or Line 2.

Sheet Public Liasion
A1: =+'Cover Page'!$B$29 -> Annual Performance Report 2020 | E1: =+'Cover Page'!$B$33 -> Kemsley Generating Station
A3: Details of Public & Stakeholder Liasion
A5: Summary of events held during the reporting year.
A6: Date | C6: Description
A7: 16.01.2020 | C7: Quarterly Environmental meeting with DS Smith and E.On
A9: 21.04.2020 | C9: Quarterly Environmental meeting with DS Smith and E.On
A11: 15.07.2020 | C11: Quarterly Environmental meeting with DS Smith and E.On
A13: 22.10.2020 | C13: Quarterly Environmental meeting with DS Smith and E.On
A15: 13.12.2020 | C15: Kemsley Fields Business Park Forum (KFBPF)
A18: List of events planned for next year
A19: Date | C19: Description
A20: 04.02.2021 | C20: Quarterly Environmental meeting with DS Smith and E.On
A22: Q2 | C22: Quarterly Environmental meeting with DS Smith and E.On
A24: Q3 | C24: Quarterly Environmental meeting with DS Smith and E.On
A26: Q4 | C26: Quarterly Environmental meeting with DS Smith and E.On
A31: If you wish to be involved in the public liasion programme, please contact _________________

Sheet Residue Quality
A1: =+'Cover Page'!$B$29 -> Annual Performance Report 2020 | E1: =+'Cover Page'!$B$33 -> Kemsley Generating Station
A3: Residue Quality Monitoring Requirements
A5: Summary of monitoring undertaken and compliance
A6: During commissioning, and once boiler operation had stabilised, start-up monitoring was carried out on the IBA. 24 samples were taken over a 12 week period and analysed for Hazardous properties. A full 15 hazardous properties analysis was carried out for both IBA and APCr. All 24 samples were categorised as non-hazardous according to the ESA protocol, and the results have been submitted to the Agency.
A8: Hazardous property analysis continues with two samples taken per month. Monthly samples of both APCr and IBA are taken for Environmental Permit compliance analysis. Results are submitted to the Agency.
A10: IBA continues to pass as non-hazardous, and is compliant with permit requirements.
A13: Commentary on any specific events
A14: Date & Event | C14: Description
A27: Residue Quality Monitoring Results
A28: Parameter (unit) | C28: Limit | D28: Normal Operation
D29: Bottom ash | F29: APC Residues
A30: Loss on Ignition (average %) | C30: <5% | D30: 1.1
A31: Total Organic Carbon (average %) | C31: <3% | D31: 0.62
A32: No. of Assessments Undertaken | C32: --- | D32: 36 | F32: 7
A33: No. of Hazardous Results | C33: --- | D33: 0
A35: Comments :

Sheet Water
A1: =+'Cover Page'!$B$29 -> Annual Performance Report 2020 | E1: =+'Cover Page'!$B$33 -> Kemsley Generating Station
A3: Emissions to Water
A5: Summary of monitoring undertaken and compliance
A6: N/A. No limits in permit. Visual inspections carried out to check for hydrocarbons, and pH testing carried out prior to discharging to Swale.
A13: Commentary on any specific events
A14: Date & Event | C14: Description
A22: Emissions to Water / Sewer
A23: Parameter | D23: Monitoring Frequency | G23: Limit | H23: Target | I23: Max. | J23: Average
A24: N/A | D24: N/A | G24: N/A | H24: N/A | I24: N/A | J24: N/A

Sheet Air (periodic)
B1: =+'Cover Page'!$B$29 -> Annual Performance Report 2020 | F1: =+'Cover Page'!$B$33 -> Kemsley Generating Station
B3: Emissions to Air (periodically monitored)
B5: Summary of monitoring undertaken, standards used and compliance | N5: Notes:
B6: Three rounds of monitoring have been undertaken at Kemsley. The first was during commissionin during Q2. This report has been submitted to tyhe Agency as part of IC2 - commissioning Report. Q3 and Q4 stack monitoring was carried out once the plant had been handed over - post-commissioning. These test results carried out post-handover have been included in calculation of the averages below. | N6: Template may require adjustment for any bespoke monitoring requirements of permit.
B7: Results of emissions to air that are periodically monitored
B8: Substance | D8: Ref. Period | E8: Emission Limit Value | G8: Average | N8: User to add additional tables as necessary, depending on whether quarterly or bi-annual reporting is required for the compliance year
G9: A1 | H9: A2 | I9: A3 | J9: A4 | K9: A5
B10: Hydrogen fluoride | D10: 1 hr | E10: 2 mg/m3 | G10: 0.029 | H10: 0.034
B11: Cd and Th and their compounds | D11: 6-8hrs | E11: 0.05 mg/m3 | G11: <0.001 | H11: 0.00095
B12: Hg and its compounds | D12: 6-8hrs | E12: 0.05 mg/m3 | G12: 0.0015 | H12: 0.0029
B13: Sb, As, Pb, Cr, Co, Cu, Mn, Ni, V and their compounds | D13: 6-8hrs | E13: 0.5 mg/m3 | G13: 0.052 | H13: 0.0305
B14: Dioxins & Furans (I-TEQ) | D14: 6-8hrs | E14: 0.1 ng/m3 | G14: 0.017 | H14: 0.013
B15: PCBs (WHO-TEQ Humans / Mammals) | D15: 6-8hrs | E15: None set ng/m3 | G15: 0.0015625 | H15: 0.0009205
B16: PCBs (WHO-TEQ Fish) | D16: 6-8hrs | E16: None set ng/m3 | G16: 6.9e-05 | H16: 4.45e-05
B17: PCBs (WHO-TEQ Birds) | D17: 6-8hrs | E17: None set ng/m3 | G17: 0.002485 | H17: 0.00168
B18: Dioxins & Furans (WHO-TEQ Humans / Mammals) | D18: 6-8hrs | E18: None set ng/m3 | G18: 0.01605 | H18: 0.01175
B19: Dioxins & Furans (WHO-TEQ Fish) | D19: 6-8hrs | E19: None set ng/m3 | G19: 0.01765 | H19: 0.0137
B20: Dioxins & Furans (WHO-TEQ Birds) | D20: 6-8hrs | E20: None set ng/m3 | G20: 0.02485 | H20: 0.02375
B21: Anthanthrene | D21: 6-8hrs | E21: None set µg/m3 | G21: 0.00097 | H21: 0.001065
B22: Benzo(a)anthracene | D22: 6-8hrs | E22: None set µg/m3 | G22: 0.00268 | H22: 0.00271
B23: Benzo(a)pyrene | D23: 6-8hrs | E23: None set µg/m3 | G23: 0.00097 | H23: 0.001065
B24: Benzo(b)fluoranthene | D24: 6-8hrs | E24: None set µg/m3 | G24: 0.00097 | H24: 0.001065
B25: Benzo(b)naptho(2,1-d) thiophene | D25: 6-8hrs | E25: None set µg/m3 | G25: 0.00138 | H25: 0.001065
B26: Benzo(c)phenanthrene | D26: 6-8hrs | E26: None set µg/m3 | G26: 0.00117 | H26: 0.00144
B27: Benzo(ghi)perylene | D27: 6-8hrs | E27: None set µg/m3 | G27: 0.00097 | H27: 0.001065
B28: Benzo(k)fluoranthene | D28: 6-8hrs | E28: None set µg/m3 | G28: 0.00097 | H28: 0.001065
B29: Cholanthrene | D29: 6-8hrs | E29: None set µg/m3 | G29: 0.00097 | H29: 0.001065
B30: Chrysene | D30: 6-8hrs | E30: None set µg/m3 | G30: 0.0028 | H30: 0.002135
B31: Cyclopenta(cd)pyrene | D31: 6-8hrs | E31: None set µg/m3 | G31: 0.00097 | H31: 0.001065
B32: Dibenzo(ai)pyrene | D32: 6-8hrs | E32: None set µg/m3 | G32: 0.00097 | H32: 0.001065
B33: Dibenzo(ah)anthracene | D33: 6-8hrs | E33: None set µg/m3 | G33: 0.00097 | H33: 0.001065
B34: Fluoranthene | D34: 6-8hrs | E34: None set µg/m3 | G34: 0.015945 | H34: 0.00934
B35: Indeno(123-cd) pyrene | D35: 6-8hrs | E35: None set µg/m3 | G35: 0.00097 | H35: 0.001065
B36: Naphthalene | D36: 6-8hrs | E36: None set µg/m3 | G36: 3.829325 | H36: 1.37372
B37: PM10 | E37: None set µg/m3 | G37: 0.039 | H37: 0.04
B38: PM 2.5 | E38: None set µg/m3 | G38: 0.041 | H38: 0.04
B39: Comments :
G44: Q3 | I44: Q4 | K44: Averages
B45: Emissions monitoring results for Q3 and Q4 | G45: L1 | H45: L2 | I45: L1 | J45: L2 | K45: L1 | L45: L2
B46: Hydrogen fluoride | D46: 1 hr | E46: 2 mg/m3 | G46: 0.029 | H46: <0.028 | I46: <0.03 | J46: <0.04 | K46: =AVERAGE(I46,G46) -> 0.029 | L46: =AVERAGE(0.04,0.028) -> 0.034
B47: Cd and Th and their compounds | D47: 6-8hrs | E47: 0.05 mg/m3 | G47: <0.001 | H47: <0.0009 | I47: <0.001 | J47: <0.001 | K47: <0.001 | L47: =AVERAGE(0.001,0.0009) -> 0.00095
B48: Hg and its compounds | D48: 6-8hrs | E48: 0.05 mg/m3 | G48: 0.002 | H48: 0.0018 | I48: 0.001 | J48: 0.004 | K48: =AVERAGE(I48,G48) -> 0.0015 | L48: =AVERAGE(H48,J48) -> 0.0029
B49: Sb, As, Pb, Cr, Co, Cu, Mn, Ni, V and their compounds | D49: 6-8hrs | E49: 0.5 mg/m3 | G49: 0.09 | H49: 0.05 | I49: 0.014 | J49: 0.011 | K49: 0.052 | L49: 0.0305
B50: Dioxins & Furans (I-TEQ) | D50: 6-8hrs | E50: 0.1 ng/m3 | G50: 0.024 | H50: 0.02 | I50: 0.01 | J50: 0.006 | K50: 0.017 | L50: 0.013
B51: PCBs (WHO-TEQ Humans / Mammals) | D51: 6-8hrs | E51: None set ng/m3 | G51: 0.00213 | H51: 0.00125 | I51: 0.000995 | J51: 0.000591 | K51: 0.0015625 | L51: 0.0009205
B52: PCBs (WHO-TEQ Fish) | D52: 6-8hrs | E52: None set ng/m3 | G52: 9e-05 | H52: 6e-05 | I52: 4.8e-05 | J52: 2.9e-05 | K52: 6.9e-05 | L52: 4.45e-05
B53: PCBs (WHO-TEQ Birds) | D53: 6-8hrs | E53: None set ng/m3 | G53: 0.003 | H53: 0.00196 | I53: 0.00197 | J53: 0.0014 | K53: 0.002485 | L53: 0.00168
B54: Dioxins & Furans (WHO-TEQ Humans / Mammals) | D54: 6-8hrs | E54: None set ng/m3 | G54: 0.023 | H54: 0.018 | I54: 0.0091 | J54: 0.0055 | K54: 0.01605 | L54: 0.01175
B55: Dioxins & Furans (WHO-TEQ Fish) | D55: 6-8hrs | E55: None set ng/m3 | G55: 0.025 | H55: 0.021 | I55: 0.0103 | J55: 0.0064 | K55: 0.01765 | L55: 0.0137
B56: Dioxins & Furans (WHO-TEQ Birds) | D56: 6-8hrs | E56: None set ng/m3 | G56: 0.034 | H56: 0.036 | I56: 0.0157 | J56: 0.0115 | K56: 0.02485 | L56: 0.02375
B57: Anthanthrene | D57: 6-8hrs | E57: None set µg/m3 | G57: <0.0014 | H57: <0.0014 | I57: <0.00054 | J57: <0.00073 | K57: =AVERAGE(0.00054,0.0014) -> 0.00097 | L57: =AVERAGE(0.0014,0.00073) -> 0.001065
B58: Benzo(a)anthracene | D58: 6-8hrs | E58: None set µg/m3 | G58: <0.0014 | H58: <0.0014 | I58: 0.00268 | J58: 0.00271 | K58: =AVERAGE(I58,G58) -> 0.00268 | L58: =AVERAGE(H58,J58) -> 0.00271
B59: Benzo(a)pyrene | D59: 6-8hrs | E59: None set µg/m3 | G59: <0.0014 | H59: <0.0014 | I59: <0.00054 | J59: <0.00073 | K59: =AVERAGE(0.00054,0.0014) -> 0.00097 | L59: =AVERAGE(0.0014,0.00073) -> 0.001065
B60: Benzo(b)fluoranthene | D60: 6-8hrs | E60: None set µg/m3 | G60: <0.0014 | H60: <0.0014 | I60: <0.00054 | J60: <0.00073 | K60: =AVERAGE(0.00054,0.0014) -> 0.00097 | L60: 0.001065
B61: Benzo(b)naptho(2,1-d) thiophene | D61: 6-8hrs | E61: None set µg/m3 | G61: <0.0014 | H61: <0.0014 | I61: 0.00136 | J61: <0.00073 | K61: =AVERAGE(I61,0.0014) -> 0.00138 | L61: 0.001065
B62: Benzo(c)phenanthrene | D62: 6-8hrs | E62: None set µg/m3 | G62: <0.0014 | H62: <0.0014 | I62: 0.00117 | J62: 0.00148 | K62: =AVERAGE(I62,G62) -> 0.00117 | L62: =AVERAGE(0.0014,J62) -> 0.00144
B63: Benzo(ghi)perylene | D63: 6-8hrs | E63: None set µg/m3 | G63: <0.0014 | H63: <0.0014 | I63: <0.00054 | J63: <0.00073 | K63: =AVERAGE(0.00054,0.0014) -> 0.00097 | L63: =AVERAGE(0.0014,0.00073) -> 0.001065
B64: Benzo(k)fluoranthene | D64: 6-8hrs | E64: None set µg/m3 | G64: <0.0014 | H64: <0.0014 | I64: <0.00054 | J64: <0.00073 | K64: 0.00097 | L64: 0.001065
B65: Cholanthrene | D65: 6-8hrs | E65: None set µg/m3 | G65: <0.0014 | H65: <0.0014 | I65: <0.00054 | J65: <0.00073 | K65: 0.00097 | L65: 0.001065
B66: Chrysene | D66: 6-8hrs | E66: None set µg/m3 | G66: 0.002 | H66: <0.0014 | I66: 0.0036 | J66: 0.00287 | K66: =AVERAGE(I66,G66) -> 0.0028 | L66: =AVERAGE(0.0014,J66) -> 0.002135
B67: Cyclopenta(cd)pyrene | D67: 6-8hrs | E67: None set µg/m3 | G67: <0.0014 | H67: <0.0014 | I67: <0.00054 | J67: <0.00073 | K67: =AVERAGE(0.00054,0.0014) -> 0.00097 | L67: =AVERAGE(0.0014,0.00073) -> 0.001065
B68: Dibenzo(ai)pyrene | D68: 6-8hrs | E68: None set µg/m3 | G68: <0.0014 | H68: <0.0014 | I68: <0.00054 | J68: <0.00073 | K68: 0.00097 | L68: 0.001065
B69: Dibenzo(ah)anthracene | D69: 6-8hrs | E69: None set µg/m3 | G69: <0.0014 | H69: <0.0014 | I69: <0.00054 | J69: <0.00073 | K69: 0.00097 | L69: 0.001065
B70: Fluoranthene | D70: 6-8hrs | E70: None set µg/m3 | G70: 0.0239 | H70: 0.0049 | I70: 0.00799 | J70: 0.01378 | K70: =AVERAGE(I70,G70) -> 0.015945 | L70: =AVERAGE(H70,J70) -> 0.00934
B71: Indeno(123-cd) pyrene | D71: 6-8hrs | E71: None set µg/m3 | G71: <0.0014 | H71: <0.0014 | I71: <0.00054 | J71: 0.00073 | K71: =AVERAGE(0.0014,0.00054) -> 0.00097 | L71: =AVERAGE(0.0014,0.00073) -> 0.001065
B72: Naphthalene | D72: 6-8hrs | E72: None set µg/m3 | G72: 7.5 | H72: 2.5 | I72: 0.15865 | J72: 0.24744 | K72: =AVERAGE(I72,G72) -> 3.829325 | L72: =AVERAGE(H72,J72) -> 1.37372
B73: PM10 | I73: 0.039 | J73: 0.04 | K73: =AVERAGE(I73,G73) -> 0.039 | L73: 0.04
B74: PM 2.5 | I74: 0.041 | J74: 0.04 | K74: =AVERAGE(I74,G74) -> 0.041 | L74: 0.04

Sheet Air (CEMS)
A1: =+'Cover Page'!$B$29 -> Annual Performance Report 2020
A3: Emissions to Air (continously monitored)
J4: Notes:
A5: Summary of monitoring undertaken, standards used and compliance | J5: Template may require adjustment for any bespoke monitoring requirements of permit
A6: Kemsley has installed MCERT's equipment to continuously monitor emissions as required by the permit. The analysers have been commissioned and tested and undergone QAL2 calibration. | J6: Report to 2 decimal places, i.e. xx.xx%
A8: ELV breaches were related to CO spikes (primarily during commissioning). No other limit breaches have occurred during 2020
A11: Results of emissions to air that are continuously monitored (maximum and average values for each line)
A12: Substance | B12: Reference Period | C12: Emission Limit Value | D12: A1 | F12: A2
D13: Max. | E13: Avg. | F13: Max. | G13: Avg.
A14: Oxides of nitrogen | B14: Daily mean | C14: 200 mg/m3 | D14: =NOx!O19 -> 179.61 | E14: =NOx!N19 -> 153.7116667 | F14: =NOx!O34 -> 166.76 | G14: =NOx!N34 -> 153.8333333
B15: ½ hourly mean | C15: 400 mg/m3 | D15: =NOx!M19 -> 252.12 | E15: =NOx!L19 -> 153.7083333 | F15: =NOx!M34 -> 252.21 | G15: =NOx!L34 -> 153.8633333
A16: Particulates | B16: Daily mean | C16: 10 mg/m3 | D16: =Particulates!O19 -> 0.08 | E16: =Particulates!N19 -> 0.07166666667 | F16: =Particulates!O34 -> 0.23 | G16: =Particulates!N34 -> 0.1333333333
B17: ½ hourly mean | C17: 30 mg/m3 | D17: =Particulates!M19 -> 0.14 | E17: =Particulates!L19 -> 0.07166666667 | F17: =Particulates!M34 -> 0.25 | G17: =Particulates!L34 -> 0.1333333333
A18: Total Organic Carbon | B18: Daily mean | C18: 10 mg/m3 | D18: =TOC!O19 -> 0.91 | E18: =TOC!N19 -> 0.2383333333 | F18: =TOC!O34 -> 0.59 | G18: =TOC!N34 -> 0.1966666667
B19: ½ hourly mean | C19: 20 mg/m3 | D19: =TOC!M19 -> 2.29 | E19: =TOC!L19 -> 0.24 | F19: =TOC!M34 -> 5.26 | G19: =TOC!L34 -> 0.2
A20: Hydrogen chloride | B20: Daily mean | C20: 10 mg/m3 | D20: =HCl!O19 -> 7.84 | E20: =HCl!N19 -> 3.786666667 | F20: =HCl!O34 -> 8.92 | G20: =HCl!N34 -> 4.898333333
B21: ½ hourly mean | C21: 60 mg/m3 | D21: =HCl!M19 -> 14.43 | E21: =HCl!L19 -> 3.77 | F21: =HCl!M34 -> 24.26 | G21: =HCl!L34 -> 4.916666667
A22: Sulphur dioxide | B22: Daily mean | C22: 50 mg/m3 | D22: ='SO2'!O19 -> 16.93 | E22: ='SO2'!N19 -> 3.673333333 | F22: ='SO2'!O34 -> 10.09 | G22: ='SO2'!N34 -> 4.093333333
B23: ½ hourly mean | C23: 200 mg/m3 | D23: ='SO2'!M19 -> 57.41 | E23: ='SO2'!L19 -> 3.691666667 | F23: ='SO2'!M34 -> 60.13 | G23: ='SO2'!L34 -> 4.13
A24: Carbon monoxide | B24: Daily mean | C24: 50 mg/m3 | D24: ='CO 0.5hourly'!O19 -> 13.46 | E24: ='CO 0.5hourly'!N19 -> 4.668333333 | F24: ='CO 0.5hourly'!O34 -> 16 | G24: ='CO 0.5hourly'!N34 -> 4.865
B25: ½ hourly mean * | C25: 100 mg/m3 * | D25: ='CO 0.5hourly'!M19 -> 462.81 | E25: ='CO 0.5hourly'!L19 -> 4.715 | F25: ='CO 0.5hourly'!M34 -> 397.52 | G25: ='CO 0.5hourly'!L34 -> 4.955
B26: 95%ile 10-min avg * | C26: 150 mg/m3 * | D26: ='CO 95% 10 min'!O19 -> 1347.22 | E26: ='CO 95% 10 min'!N19 -> 4.715 | F26: ='CO 95% 10 min'!O34 -> 1048.96 | G26: ='CO 95% 10 min'!N34 -> 4.973333333
A27: Ammonia | B27: Daily mean | C27: No limit set | D27: ='NH3'!O19 -> 1.9 | E27: ='NH3'!N19 -> 0.6416666667 | F27: ='NH3'!O34 -> 2.26 | G27: ='NH3'!N34 -> 0.4783333333
A28: * = delete or amend as appropriate
A29: Comments :
A30: Both the half-hourly and 10-minute data has been reported as the permit was varied in August 2020, and the 10-minute average adopted in mid-September.

Sheet HCl
A1: =+'Cover Page'!$B$29 -> Annual Performance Report 2020 | E1: =+'Cover Page'!$B$33 -> Kemsley Generating Station
A3: Monitoring of Hydrogen Chloride emissions | D3: Whole Installation | G3: See Notes in Cell Q3 | J3: =+A3 -> Monitoring of Hydrogen Chloride emissions | N3: Per Combustion Line | Q3: Notes:
Q4: User to add logic to complete Whole installation, Table A5:G18. From the data in Per Combustion Line, Table J6:O79, subject to No. of lines installed
A5: mg/Nm3 | B5: 1/2 Hourly Reference Periods | E5: Daily Reference Periods
A6: =+'Cover Page'!C39 -> 2020 | B6: 1/2 hourly HCl ELV | C6: Monthly 1/2 hourly mean | D6: Highest 1/2 hourly maximum | E6: Daily HCl ELV | F6: Monthly daily mean | G6: Highest daily maximum | J6: =+A6 -> 2020 | K6: mg/Nm3 | L6: Monthly 1/2 hourly mean | M6: Monthly 1/2 hourly maximum | N6: Monthly daily mean | O6: Monthly daily maximum
A7: Jan | B7: 60 | E7: 10 | J7: A1 | K7: Jan
A8: Feb | B8: 60 | E8: 10 | K8: Feb
A9: Mar | B9: 60 | E9: 10 | K9: Mar | Q9: Whole Installation table A5:G18:
A10: Apr | B10: 60 | E10: 10 | K10: Apr | Q10: Mean: for 1/2 hourly and daily periods calculate mean of values across all operational combustion lines for the month
A11: May | B11: 60 | E11: 10 | K11: May
A12: Jun | B12: 60 | E12: 10 | K12: Jun
A13: Jul | B13: 60 | C13: 5.11 | D13: 11.21 | E13: 10 | F13: 5.11 | G13: 8.92 | K13: Jul | L13: 4.23 | M13: 9.87 | N13: 4.25 | O13: 7.4 | Q13: Maximum: for 1/2 hourly and daily periods use the highest value across all operational combustion lines for the month
A14: Aug | B14: 60 | C14: 4.06 | D14: 12.21 | E14: 10 | F14: 4.02 | G14: 7.27 | K14: Aug | L14: 3.67 | M14: 9.12 | N14: 3.68 | O14: 6.09
A15: Sep | B15: 60 | C15: 3.05 | D15: 15.73 | E15: 10 | F15: 3.04 | G15: 5.54 | K15: Sep | L15: 2.82 | M15: 13.86 | N15: 2.84 | O15: 5.54
A16: Oct | B16: 60 | C16: 3.6 | D16: 12.69 | E16: 10 | F16: 3.62 | G16: 7.65 | K16: Oct | L16: 3.56 | M16: 9.11 | N16: 3.61 | O16: 7.11
A17: Nov | B17: 60 | C17: 5.39 | D17: 24.26 | E17: 10 | F17: 5.39 | G17: 7.84 | K17: Nov | L17: 4.97 | M17: 14.43 | N17: 4.97 | O17: 7.84
A18: Dec | B18: 60 | C18: 4.85 | D18: 14.63 | E18: 10 | F18: 4.8 | G18: 8.5 | K18: Dec | L18: 3.37 | M18: 14.26 | N18: 3.37 | O18: 5.25
K19: Annual | L19: =AVERAGE(L7:L18) -> 3.77 | M19: =MAX(M7:M18) -> 14.43 | N19: =AVERAGE(N7:N18) -> 3.786666667 | O19: =MAX(O7:O18) -> 7.84
J21: =+A6 -> 2020 | K21: mg/Nm3 | L21: Monthly 1/2 hourly mean | M21: Monthly 1/2 hourly maximum | N21: Monthly daily mean | O21: Monthly daily maximum
J22: A2 | K22: Jan
K23: Feb
K24: Mar
K25: Apr
K26: May
K27: Jun
K28: Jul | L28: 5.99 | M28: 11.21 | N28: 5.97 | O28: 8.92
K29: Aug | L29: 4.43 | M29: 12.21 | N29: 4.36 | O29: 7.27
K30: Sep | L30: 3.26 | M30: 15.73 | N30: 3.23 | O30: 4.39
K31: Oct | L31: 3.63 | M31: 12.69 | N31: 3.63 | O31: 7.65
K32: Nov | L32: 5.81 | M32: 24.26 | N32: 5.81 | O32: 7.79
K33: Dec | L33: 6.38 | M33: 14.63 | N33: 6.39 | O33: 8.5
K34: Annual | L34: =AVERAGE(L22:L33) -> 4.916666667 | M34: =MAX(M22:M33) -> 24.26 | N34: =AVERAGE(N22:N33) -> 4.898333333 | O34: =MAX(O22:O33) -> 8.92
A48: Comments :
A49: The reported data is from Q3 and Q4 - after plant hand-over from EPC contractor CNIM to Wheelabrator on 16th July 2020. Reports prior to this were submitted as part of the Q2 returns.

Sheet SO2
A1: =+'Cover Page'!$B$29 -> Annual Performance Report 2020 | E1: =+'Cover Page'!$B$33 -> Kemsley Generating Station
A3: Monitoring of Sulphur dioxide emissions | D3: Whole Installation | G3: See Notes in Cell Q3 | J3: =+A3 -> Monitoring of Sulphur dioxide emissions | N3: Per Combustion Line | Q3: Notes:
Q4: User to add logic to complete Whole installation, Table A5:G18. From the data in Per Combustion Line, Table J6:O79, subject to No. of lines installed
A5: mg/Nm3 | B5: 1/2 Hourly Reference Periods | E5: Daily Reference Periods
A6: =+'Cover Page'!C39 -> 2020 | B6: 1/2 hourly SO2 ELV | C6: Monthly 1/2 hourly mean | D6: Highest 1/2 hourly maximum | E6: Daily SO2 ELV | F6: Monthly daily mean | G6: Highest daily maximum | J6: =+A6 -> 2020 | K6: mg/Nm3 | L6: Monthly 1/2 hourly mean | M6: Monthly 1/2 hourly maximum | N6: Monthly daily mean | O6: Monthly daily maximum
A7: Jan | B7: 200 | E7: 50 | J7: A1 | K7: Jan
A8: Feb | B8: 200 | E8: 50 | K8: Feb
A9: Mar | B9: 200 | E9: 50 | K9: Mar | Q9: Whole Installation table A5:G18:
A10: Apr | B10: 200 | E10: 50 | K10: Apr | Q10: Mean: for 1/2 hourly and daily periods calculate mean of values across all operational combustion lines for the month
A11: May | B11: 200 | E11: 50 | K11: May
A12: Jun | B12: 200 | E12: 50 | K12: Jun
A13: Jul | B13: 200 | C13: 3.06 | D13: 60.13 | E13: 50 | F13: 2.99 | G13: 5.11 | K13: Jul | L13: 2.3 | M13: 16.85 | N13: 2.29 | O13: 3.64 | Q13: Maximum: for 1/2 hourly and daily periods use the highest value across all operational combustion lines for the month
A14: Aug | B14: 200 | C14: 4.62 | D14: 37.68 | E14: 50 | F14: 4.6 | G14: 9.08 | K14: Aug | L14: 3.76 | M14: 37.68 | N14: 3.81 | O14: 9.08
A15: Sep | B15: 200 | C15: 5.06 | D15: 46.12 | E15: 50 | F15: 5.09 | G15: 12.68 | K15: Sep | L15: 4.73 | M15: 38.71 | N15: 4.72 | O15: 12.68
A16: Oct | B16: 200 | C16: 5.17 | D16: 50.17 | E16: 50 | F16: 5.1 | G16: 13.7 | K16: Oct | L16: 5.18 | M16: 50.17 | N16: 5.04 | O16: 13.7
A17: Nov | B17: 200 | C17: 3.11 | D17: 57.41 | E17: 50 | F17: 3.11 | G17: 16.93 | K17: Nov | L17: 4.02 | M17: 57.41 | N17: 4.02 | O17: 16.93
A18: Dec | B18: 200 | C18: 2.47 | D18: 37.94 | E18: 50 | F18: 2.41 | G18: 7.91 | K18: Dec | L18: 2.16 | M18: 37.94 | N18: 2.16 | O18: 4.27
K19: Annual | L19: =AVERAGE(L7:L18) -> 3.691666667 | M19: =MAX(M7:M18) -> 57.41 | N19: =AVERAGE(N7:N18) -> 3.673333333 | O19: =MAX(O7:O18) -> 16.93
J21: =+A6 -> 2020 | K21: mg/Nm3 | L21: Monthly 1/2 hourly mean | M21: Monthly 1/2 hourly maximum | N21: Monthly daily mean | O21: Monthly daily maximum
J22: A2 | K22: Jan
K23: Feb
K24: Mar
K25: Apr
K26: May
K27: Jun
K28: Jul | L28: 3.82 | M28: 60.13 | N28: 3.68 | O28: 5.11
K29: Aug | L29: 5.45 | M29: 35.55 | N29: 5.4 | O29: 8.16
K30: Sep | L30: 5.36 | M30: 46.12 | N30: 5.44 | O30: 9.22
K31: Oct | L31: 5.16 | M31: 37.52 | N31: 5.16 | O31: 10.09
K32: Nov | L32: 2.2 | M32: 41.23 | N32: 2.2 | O32: 3.61
K33: Dec | L33: 2.79 | M33: 33.07 | N33: 2.68 | O33: 7.91
K34: Annual | L34: =AVERAGE(L22:L33) -> 4.13 | M34: =MAX(M22:M33) -> 60.13 | N34: =AVERAGE(N22:N33) -> 4.093333333 | O34: =MAX(O22:O33) -> 10.09
A48: Comments :
A49: The reported data is from Q3 and Q4 - after plant hand-over from EPC contractor CNIM to Wheelabrator on 16th July 2020. Reports prior to this were submitted as part of the Q2 returns.

Sheet NOx
A1: =+'Cover Page'!$B$29 -> Annual Performance Report 2020 | E1: =+'Cover Page'!$B$33 -> Kemsley Generating Station
A3: Monitoring of Oxides of Nitrogen emissions | D3: Whole Installation | G3: See Notes in Cell Q3 | J3: =+A3 -> Monitoring of Oxides of Nitrogen emissions | N3: Per Combustion Line | Q3: Notes:
Q4: User to add logic to complete Whole installation, Table A5:G18. From the data in Per Combustion Line, Table J6:O79, subject to No. of lines installed
A5: mg/Nm3 | B5: 1/2 Hourly Reference Periods | E5: Daily Reference Periods
A6: =+'Cover Page'!C39 -> 2020 | B6: 1/2 hourly NOx ELV | C6: Monthly 1/2 hourly mean | D6: Highest 1/2 hourly maximum | E6: Daily NOx ELV | F6: Monthly daily mean | G6: Highest daily maximum | J6: =+A6 -> 2020 | K6: mg/Nm3 | L6: Monthly 1/2 hourly mean | M6: Monthly 1/2 hourly maximum | N6: Monthly daily mean | O6: Monthly daily maximum
A7: Jan | B7: 400 | E7: 200 | J7: A1 | K7: Jan
A8: Feb | B8: 400 | E8: 200 | K8: Feb
A9: Mar | B9: 400 | E9: 200 | K9: Mar | Q9: Whole Installation table A5:G18:
A10: Apr | B10: 400 | E10: 200 | K10: Apr | Q10: Mean: for 1/2 hourly and daily periods calculate mean of values across all operational combustion lines for the month
A11: May | B11: 400 | E11: 200 | K11: May
A12: Jun | B12: 400 | E12: 200 | K12: Jun
A13: Jul | B13: 400 | C13: 153.83 | D13: 245.57 | E13: 200 | F13: 153.8 | G13: 167.02 | K13: Jul | L13: 153.56 | M13: 245.57 | N13: 153.57 | O13: 167.02 | Q13: Maximum: for 1/2 hourly and daily periods use the highest value across all operational combustion lines for the month
A14: Aug | B14: 400 | C14: 155.27 | D14: 252.21 | E14: 200 | F14: 155.22 | G14: 166.76 | K14: Aug | L14: 155.14 | M14: 231.97 | N14: 155.18 | O14: 164.85
A15: Sep | B15: 400 | C15: 153.58 | D15: 248.24 | E15: 200 | F15: 153.59 | G15: 161.69 | K15: Sep | L15: 153.3 | M15: 248.24 | N15: 153.21 | O15: 158.26
A16: Oct | B16: 400 | C16: 153.97 | D16: 240.42 | E16: 200 | F16: 153.99 | G16: 179.61 | K16: Oct | L16: 154.83 | M16: 240.42 | N16: 154.89 | O16: 179.61
A17: Nov | B17: 400 | C17: 153.09 | D17: 233.88 | E17: 200 | F17: 153.09 | G17: 161.82 | K17: Nov | L17: 152.9 | M17: 213.17 | N17: 152.9 | O17: 161.82
A18: Dec | B18: 400 | C18: 152.98 | D18: 252.12 | E18: 200 | F18: 152.92 | G18: 160.77 | K18: Dec | L18: 152.52 | M18: 252.12 | N18: 152.52 | O18: 160.77
K19: Annual | L19: =AVERAGE(L7:L18) -> 153.7083333 | M19: =MAX(M7:M18) -> 252.12 | N19: =AVERAGE(N7:N18) -> 153.7116667 | O19: =MAX(O7:O18) -> 179.61
J21: =+A6 -> 2020 | K21: mg/Nm3 | L21: Monthly 1/2 hourly mean | M21: Monthly 1/2 hourly maximum | N21: Monthly daily mean | O21: Monthly daily maximum
J22: A2 | K22: Jan
K23: Feb
K24: Mar
K25: Apr
K26: May
K27: Jun
K28: Jul | L28: 154.1 | M28: 222.39 | N28: 154.04 | O28: 158.65
K29: Aug | L29: 155.38 | M29: 252.21 | N29: 155.26 | O29: 166.76
K30: Sep | L30: 153.84 | M30: 246.89 | N30: 153.95 | O30: 161.69
K31: Oct | L31: 153.11 | M31: 237.01 | N31: 153.11 | O31: 157.38
K32: Nov | L32: 153.28 | M32: 233.88 | N32: 153.28 | O32: 161.03
K33: Dec | L33: 153.47 | M33: 235.03 | N33: 153.36 | O33: 158.74
K34: Annual | L34: =AVERAGE(L22:L33) -> 153.8633333 | M34: =MAX(M22:M33) -> 252.21 | N34: =AVERAGE(N22:N33) -> 153.8333333 | O34: =MAX(O22:O33) -> 166.76
A48: Comments :
A49: The reported data is from Q3 and Q4 - after plant hand-over from EPC contractor CNIM to Wheelabrator on 16th July 2020. Reports prior to this were submitted as part of the Q2 returns.

Sheet TOC
A1: =+'Cover Page'!$B$29 -> Annual Performance Report 2020 | E1: =+'Cover Page'!$B$33 -> Kemsley Generating Station
A3: Monitoring of Total organic carbon emissions | D3: Whole Installation | G3: See Notes in Cell Q3 | J3: =+A3 -> Monitoring of Total organic carbon emissions | N3: Per Combustion Line | Q3: Notes:
Q4: User to add logic to complete Whole installation, Table A5:G18. From the data in Per Combustion Line, Table J6:O79, subject to No. of lines installed
A5: mg/Nm3 | B5: 1/2 Hourly Reference Periods | E5: Daily Reference Periods
A6: =+'Cover Page'!C39 -> 2020 | B6: 1/2 hourly TOC ELV | C6: Monthly 1/2 hourly mean | D6: Highest 1/2 hourly maximum | E6: Daily TOC ELV | F6: Monthly daily mean | G6: Highest daily maximum | J6: =+A6 -> 2020 | K6: mg/Nm3 | L6: Monthly 1/2 hourly mean | M6: Monthly 1/2 hourly maximum | N6: Monthly daily mean | O6: Monthly daily maximum
A7: Jan | B7: 20 | E7: 10 | J7: A1 | K7: Jan
A8: Feb | B8: 20 | E8: 10 | K8: Feb
A9: Mar | B9: 20 | E9: 10 | K9: Mar | Q9: Whole Installation table A5:G18:
A10: Apr | B10: 20 | E10: 10 | K10: Apr | Q10: Mean: for 1/2 hourly and daily periods calculate mean of values across all operational combustion lines for the month
A11: May | B11: 20 | E11: 10 | K11: May
A12: Jun | B12: 20 | E12: 10 | K12: Jun
A13: Jul | B13: 20 | C13: 0.24 | D13: 2.29 | E13: 10 | F13: 0.24 | G13: 0.91 | K13: Jul | L13: 0.33 | M13: 2.29 | N13: 0.34 | O13: 0.91 | Q13: Maximum: for 1/2 hourly and daily periods use the highest value across all operational combustion lines for the month
A14: Aug | B14: 20 | C14: 0.21 | D14: 1.21 | E14: 10 | F14: 0.21 | G14: 0.59 | K14: Aug | L14: 0.23 | M14: 0.99 | N14: 0.23 | O14: 0.48
A15: Sep | B15: 20 | C15: 0.14 | D15: 2.12 | E15: 10 | F15: 0.13 | G15: 0.29 | K15: Sep | L15: 0.18 | M15: 2.12 | N15: 0.17 | O15: 0.29
A16: Oct | B16: 20 | C16: 0.1 | D16: 0.67 | E16: 10 | F16: 0.1 | G16: 0.2 | K16: Oct | L16: 0.14 | M16: 0.67 | N16: 0.13 | O16: 0.2
A17: Nov | B17: 20 | C17: 0.26 | D17: 2.12 | E17: 10 | F17: 0.26 | G17: 0.58 | K17: Nov | L17: 0.24 | M17: 0.41 | N17: 0.24 | O17: 0.36
A18: Dec | B18: 20 | C18: 0.36 | D18: 5.26 | E18: 10 | F18: 0.36 | G18: 0.58 | K18: Dec | L18: 0.32 | M18: 0.72 | N18: 0.32 | O18: 0.35
K19: Annual | L19: =AVERAGE(L7:L18) -> 0.24 | M19: =MAX(M7:M18) -> 2.29 | N19: =AVERAGE(N7:N18) -> 0.2383333333 | O19: =MAX(O7:O18) -> 0.91
J21: =+A6 -> 2020 | K21: mg/Nm3 | L21: Monthly 1/2 hourly mean | M21: Monthly 1/2 hourly maximum | N21: Monthly daily mean | O21: Monthly daily maximum
J22: A2 | K22: Jan
K23: Feb
K24: Mar
K25: Apr
K26: May
K27: Jun
K28: Jul | L28: 0.14 | M28: 0.39 | N28: 0.14 | O28: 0.21
K29: Aug | L29: 0.19 | M29: 1.21 | N29: 0.19 | O29: 0.59
K30: Sep | L30: 0.11 | M30: 0.92 | N30: 0.1 | O30: 0.15
K31: Oct | L31: 0.07 | M31: 0.32 | N31: 0.07 | O31: 0.1
K32: Nov | L32: 0.29 | M32: 2.12 | N32: 0.29 | O32: 0.58
K33: Dec | L33: 0.4 | M33: 5.26 | N33: 0.39 | O33: 0.58
K34: Annual | L34: =AVERAGE(L22:L33) -> 0.2 | M34: =MAX(M22:M33) -> 5.26 | N34: =AVERAGE(N22:N33) -> 0.1966666667 | O34: =MAX(O22:O33) -> 0.59
A48: Comments :
A49: The reported data is from Q3 and Q4 - after plant hand-over from EPC contractor CNIM to Wheelabrator on 16th July 2020. Reports prior to this were submitted as part of the Q2 returns.

Sheet Particulates
A1: =+'Cover Page'!$B$29 -> Annual Performance Report 2020 | E1: =+'Cover Page'!$B$33 -> Kemsley Generating Station
A3: Monitoring of Particulate matter emissions | D3: Whole Installation | G3: See Notes in Cell Q3 | J3: =+A3 -> Monitoring of Particulate matter emissions | N3: Per Combustion Line | Q3: Notes:
Q4: User to add logic to complete Whole installation, Table A5:G18. From the data in Per Combustion Line, Table J6:O79, subject to No. of lines installed
A5: mg/Nm3 | B5: 1/2 Hourly Reference Periods | E5: Daily Reference Periods
A6: =+'Cover Page'!C39 -> 2020 | B6: 1/2 hourly PM ELV | C6: Monthly 1/2 hourly mean | D6: Highest 1/2 hourly maximum | E6: Daily PM ELV | F6: Monthly daily mean | G6: Highest daily maximum | J6: =+A6 -> 2020 | K6: mg/Nm3 | L6: Monthly 1/2 hourly mean | M6: Monthly 1/2 hourly maximum | N6: Monthly daily mean | O6: Monthly daily maximum
A7: Jan | B7: 30 | E7: 10 | J7: A1 | K7: Jan
A8: Feb | B8: 30 | E8: 10 | K8: Feb
A9: Mar | B9: 30 | E9: 10 | K9: Mar | Q9: Whole Installation table A5:G18:
A10: Apr | B10: 30 | E10: 10 | K10: Apr | Q10: Mean: for 1/2 hourly and daily periods calculate mean of values across all operational combustion lines for the month
A11: May | B11: 30 | E11: 10 | K11: May
A12: Jun | B12: 30 | E12: 10 | K12: Jun
A13: Jul | B13: 30 | C13: 0.13 | D13: 0.25 | E13: 10 | F13: 0.13 | G13: 0.23 | K13: Jul | L13: 0.07 | M13: 0.09 | N13: 0.07 | O13: 0.07 | Q13: Maximum: for 1/2 hourly and daily periods use the highest value across all operational combustion lines for the month
A14: Aug | B14: 30 | C14: 0.1 | D14: 0.25 | E14: 10 | F14: 0.1 | G14: 0.23 | K14: Aug | L14: 0.07 | M14: 0.11 | N14: 0.07 | O14: 0.07
A15: Sep | B15: 30 | C15: 0.09 | D15: 0.24 | E15: 10 | F15: 0.09 | G15: 0.16 | K15: Sep | L15: 0.07 | M15: 0.09 | N15: 0.07 | O15: 0.07
A16: Oct | B16: 30 | C16: 0.09 | D16: 0.19 | E16: 10 | F16: 0.09 | G16: 0.12 | K16: Oct | L16: 0.07 | M16: 0.13 | N16: 0.07 | O16: 0.08
A17: Nov | B17: 30 | C17: 0.09 | D17: 0.14 | E17: 10 | F17: 0.09 | G17: 0.12 | K17: Nov | L17: 0.07 | M17: 0.08 | N17: 0.07 | O17: 0.08
A18: Dec | B18: 30 | C18: 0.1 | D18: 0.18 | E18: 10 | F18: 0.1 | G18: 0.13 | K18: Dec | L18: 0.08 | M18: 0.14 | N18: 0.08 | O18: 0.08
K19: Annual | L19: =AVERAGE(L7:L18) -> 0.07166666667 | M19: =MAX(M7:M18) -> 0.14 | N19: =AVERAGE(N7:N18) -> 0.07166666667 | O19: =MAX(O7:O18) -> 0.08
J21: =+A6 -> 2020 | K21: mg/Nm3 | L21: Monthly 1/2 hourly mean | M21: Monthly 1/2 hourly maximum | N21: Monthly daily mean | O21: Monthly daily maximum
J22: A2 | K22: Jan
K23: Feb
K24: Mar
K25: Apr
K26: May
K27: Jun
K28: Jul | L28: 0.2 | M28: 0.25 | N28: 0.2 | O28: 0.23
K29: Aug | L29: 0.12 | M29: 0.25 | N29: 0.12 | O29: 0.23
K30: Sep | L30: 0.12 | M30: 0.24 | N30: 0.12 | O30: 0.16
K31: Oct | L31: 0.12 | M31: 0.19 | N31: 0.12 | O31: 0.12
K32: Nov | L32: 0.12 | M32: 0.14 | N32: 0.12 | O32: 0.12
K33: Dec | L33: 0.12 | M33: 0.18 | N33: 0.12 | O33: 0.13
K34: Annual | L34: =AVERAGE(L22:L33) -> 0.1333333333 | M34: =MAX(M22:M33) -> 0.25 | N34: =AVERAGE(N22:N33) -> 0.1333333333 | O34: =MAX(O22:O33) -> 0.23
A48: Comments :
A49: The reported data is from Q3 and Q4 - after plant hand-over from EPC contractor CNIM to Wheelabrator on 16th July 2020. Reports prior to this were submitted as part of the Q2 returns.

Sheet CO 0.5hourly
A1: =+'Cover Page'!$B$29 -> Annual Performance Report 2020 | E1: =+'Cover Page'!$B$33 -> Kemsley Generating Station
A3: Monitoring of Carbon Monoxide (half hourly) | D3: Whole Installation | G3: See Notes in Cell Q3 | J3: =+A3 -> Monitoring of Carbon Monoxide (half hourly) | N3: Per Combustion Line | Q3: Notes:
Q4: User to add logic to complete Whole installation, Table A5:G18. From the data in Per Combustion Line, Table J6:O79, subject to No. of lines installed
A5: mg/Nm3 | B5: 1/2 Hourly Reference Periods | E5: Daily Reference Periods
A6: =+'Cover Page'!C39 -> 2020 | B6: 1/2 hourly CO ELV | C6: Monthly 1/2 hourly mean | D6: Highest 1/2 hourly maximum | E6: Daily CO ELV | F6: Monthly daily mean | G6: Highest daily maximum | J6: =+A6 -> 2020 | K6: mg/Nm3 | L6: Monthly 1/2 hourly mean | M6: Monthly 1/2 hourly maximum | N6: Monthly daily mean | O6: Monthly daily maximum
A7: Jan | B7: 100 | E7: 50 | J7: A1 | K7: Jan
A8: Feb | B8: =+B7 -> 100 | E8: =+E7 -> 50 | K8: Feb
A9: Mar | B9: =+B8 -> 100 | E9: =+E8 -> 50 | K9: Mar | Q9: Whole Installation table A5:G18:
A10: Apr | B10: 100 | E10: 50 | K10: Apr | Q10: Mean: for 1/2 hourly and daily periods calculate mean of values across all operational combustion lines for the month
A11: May | B11: 100 | E11: 50 | K11: May
A12: Jun | B12: 100 | E12: 50 | K12: Jun
A13: Jul | B13: 100 | C13: 4.66 | D13: 151.8 | E13: 50 | F13: 4.65 | G13: 7.2 | K13: Jul | L13: 4.59 | M13: 85.72 | N13: 4.56 | O13: 5.8 | Q13: Maximum: for 1/2 hourly and daily periods use the highest value across all operational combustion lines for the month
A14: Aug | B14: 100 | C14: 4.81 | D14: 462.81 | E14: 50 | F14: 4.77 | G14: 13.46 | K14: Aug | L14: 4.78 | M14: 462.81 | N14: 4.73 | O14: 13.46
A15: Sep | B15: 100 | C15: 4.8 | D15: 176.87 | E15: 50 | F15: 4.64 | G15: 5.76 | K15: Sep | L15: 4.86 | M15: 176.87 | N15: 4.69 | O15: 5.75
A16: Oct | B16: 100 | C16: 4.65 | D16: 209.26 | E16: 50 | F16: 4.64 | G16: 9.95 | K16: Oct | L16: 4.45 | M16: 57.76 | N16: 4.42 | O16: 6.14
A17: Nov | B17: 100 | C17: 4.89 | D17: 176.56 | E17: 50 | F17: 4.89 | G17: 11.4 | K17: Nov | L17: 4.89 | M17: 42.71 | N17: 4.89 | O17: 6.27
A18: Dec | B18: 100 | C18: 5.19 | D18: 397.52 | E18: 50 | F18: 5 | G18: 16 | K18: Dec | L18: 4.72 | M18: 46.96 | N18: 4.72 | O18: 5.56
K19: Annual | L19: =AVERAGE(L7:L18) -> 4.715 | M19: =MAX(M7:M18) -> 462.81 | N19: =AVERAGE(N7:N18) -> 4.668333333 | O19: =MAX(O7:O18) -> 13.46
J21: =+A6 -> 2020 | K21: mg/Nm3 | L21: Monthly 1/2 hourly mean | M21: Monthly 1/2 hourly maximum | N21: Monthly daily mean | O21: Monthly daily maximum
J22: A2 | K22: Jan
K23: Feb
K24: Mar
K25: Apr
K26: May
K27: Jun
K28: Jul | L28: 4.74 | M28: 151.8 | N28: 4.74 | O28: 7.2
K29: Aug | L29: 4.83 | M29: 117.82 | N29: 4.81 | O29: 7.05
K30: Sep | L30: 4.74 | M30: 55.75 | N30: 4.6 | O30: 5.76
K31: Oct | L31: 4.84 | M31: 209.26 | N31: 4.84 | O31: 9.95
K32: Nov | L32: 4.9 | M32: 176.56 | N32: 4.9 | O32: 11.4
K33: Dec | L33: 5.68 | M33: 397.52 | N33: 5.3 | O33: 16
K34: Annual | L34: =AVERAGE(L22:L33) -> 4.955 | M34: =MAX(M22:M33) -> 397.52 | N34: =AVERAGE(N22:N33) -> 4.865 | O34: =MAX(O22:O33) -> 16
A48: Comments :
A49: The reported data is from Q3 and Q4 - after plant hand-over from EPC contractor CNIM to Wheelabrator on 16th July 2020. Reports prior to this were submitted as part of the Q2 returns.

Sheet CO 95% 10 min
A1: =+'Cover Page'!$B$29 -> Annual Performance Report 2020 | E1: =+'Cover Page'!$B$33 -> Kemsley Generating Station
A3: Monitoring of Carbon Monoxide (10-minute avg) | E3: Whole Installation | H3: See Notes in Cell S3 | J3: =+A3 -> Monitoring of Carbon Monoxide (10-minute avg) | O3: Per Combustion Line | Q3: Notes: | S3: Notes:
S4: User to add logic to complete Whole installation, Table A5:H18. From the data in Per Combustion Line, Table K6:Q79, subject to No. of lines installed
A5: mg/Nm3 | B5: 10-minute Reference Periods | F5: Daily Reference Periods
A6: =+'Cover Page'!C39 -> 2020 | B6: 95%ile 10-min avg CO ELV | C6: 95%ile 10-min avg maximum | D6: Monthly CO 10-min avg mean | E6: 10-min avg maximum | F6: Daily CO ELV | G6: Monthly daily mean | H6: Highest daily maximum | K6: =+A6 -> 2020 | L6: mg/Nm3 | M6: 95%ile 10-min avg maximum | N6: Monthly CO 10-min avg mean | O6: 10-min avg maximum | P6: Monthly daily mean | Q6: Monthly daily maximum
A7: Jan | B7: 150 | F7: 50 | K7: A1 | L7: Jan
A8: Feb | B8: =+B7 -> 150 | F8: =+F7 -> 50 | L8: Feb
A9: Mar | B9: =+B8 -> 150 | F9: =+F8 -> 50 | L9: Mar | S9: Whole Installation table A5:H18:
A10: Apr | B10: 150 | F10: 50 | L10: Apr | S10: Mean: for 10-min and daily periods use average of all operational combustion lines.
A11: May | B11: 150 | F11: 50 | L11: May
A12: Jun | B12: 150 | F12: 50 | L12: Jun
A13: Jul | B13: 150 | C13: 7.2 | D13: 4.67 | E13: 445.96 | F13: 50 | G13: 4.65 | H13: 7.2 | L13: Jul | M13: 6.83 | N13: 4.59 | O13: 267.79 | P13: 4.56 | Q13: 5.93 | S13: Maximum: for 10-min and daily periods use the highest of all operational combustion lines in any month.
A14: Aug | B14: 150 | C14: 7.46 | D14: 4.79 | E14: 1347.22 | F14: 50 | G14: 4.75 | H14: 13.46 | L14: Aug | M14: 5.93 | N14: 4.75 | O14: 1347.22 | P14: 4.7 | Q14: 13.46
A15: Sep | B15: 150 | C15: 10.73 | D15: 4.85 | E15: 518.37 | F15: 50 | G15: 4.64 | H15: 5.78 | L15: Sep | M15: 8.07 | N15: 4.86 | O15: 518.37 | P15: 4.69 | Q15: 5.74
A16: Oct | B16: 150 | C16: 8.89 | D16: 4.66 | E16: 618.55 | F16: 50 | G16: 4.65 | H16: 9.95 | L16: Oct | M16: 8.89 | N16: 4.48 | O16: 191.95 | P16: 4.45 | Q16: 6.14
A17: Nov | B17: 150 | C17: 10.09 | D17: 4.9 | E17: 521.41 | F17: 50 | G17: 4.9 | H17: 11.4 | L17: Nov | M17: 9.73 | N17: 4.89 | O17: 117.05 | P17: 4.89 | Q17: 6.27
A18: Dec | B18: 150 | C18: 22.4 | D18: 5.19 | E18: 1048.96 | F18: 50 | G18: 5.01 | H18: 16 | L18: Dec | M18: 7.28 | N18: 4.72 | O18: 131.27 | P18: 4.72 | Q18: 5.56
L19: Annual | M19: =MAX(M7:M18) -> 9.73 | N19: =AVERAGE(N7:N18) -> 4.715 | O19: =MAX(O7:O18) -> 1347.22 | P19: =AVERAGE(P7:P18) -> 4.668333333 | Q19: =MAX(Q7:Q18) -> 13.46
K21: =+A6 -> 2020 | L21: mg/Nm3 | M21: 95%ile 10-min avg maximum | N21: Monthly CO 10-min avg mean | O21: 10-min avg maximum | P21: Monthly daily mean | Q21: Monthly daily maximum
K22: A2 | L22: Jan
L23: Feb
L24: Mar
L25: Apr
L26: May
L27: Jun
L28: Jul | M28: 7.2 | N28: 4.74 | O28: 445.96 | P28: 4.74 | Q28: 7.2
L29: Aug | M29: 7.46 | N29: 4.83 | O29: 342.98 | P29: 4.81 | Q29: 7.06
L30: Sep | M30: 10.73 | N30: 4.83 | O30: 349.23 | P30: 4.6 | Q30: 5.78
L31: Oct | M31: 7.66 | N31: 4.85 | O31: 618.55 | P31: 4.84 | Q31: 9.95
L32: Nov | M32: 10.09 | N32: 4.91 | O32: 521.41 | P32: 4.91 | Q32: 11.4
L33: Dec | M33: 22.4 | N33: 5.68 | O33: 1048.96 | P33: 5.32 | Q33: 16
L34: Annual | M34: =MAX(M22:M33) -> 22.4 | N34: =AVERAGE(N22:N33) -> 4.973333333 | O34: =MAX(O22:O33) -> 1048.96 | P34: =AVERAGE(P22:P33) -> 4.87 | Q34: =MAX(Q22:Q33) -> 16
K36: =+A6 -> 2020 | L36: mg/Nm3 | M36: 95%ile 10-min avg maximum | N36: Monthly CO 10-min avg mean | O36: 10-min avg maximum | P36: Monthly daily mean | Q36: Monthly daily maximum
K37: A3 | L37: Jan
L38: Feb
L39: Mar
L40: Apr
L41: May
L42: Jun
L43: Jul | M43: 7.2 | N43: 4.74 | O43: 445.96 | P43: 4.74 | Q43: 7.2
L44: Aug | M44: 7.46 | N44: 4.83 | O44: 342.98 | P44: 4.81 | Q44: 7.06
L45: Sep | M45: 10.73 | N45: 4.83 | O45: 349.23 | P45: 4.6 | Q45: 5.78
L46: Oct | M46: 7.66 | N46: 4.85 | O46: 618.55 | P46: 4.84 | Q46: 9.95
L47: Nov | M47: 10.09 | N47: 4.91 | O47: 521.41 | P47: 4.91 | Q47: 11.4
A48: Comments : | L48: Dec | M48: 22.4 | N48: 5.68 | O48: 1048.96 | P48: 5.32 | Q48: 16
A49: Environment Agency explanatory note: The 10-minute average ELV is based on the “95th percentile”. In this case this means that 95% of the 10 minute averages in the relevant 24-hour period (i.e. 137) must be below 150 mg/Nm3, and 5% (i.e. 7) are allowed to be any value above 150 mg/Nm3. Whilst we expect operators to minimise CO emissions at all times, it is perfectly acceptable for the value of the maximum 10-minute average to be above 150 mg/Nm3, provided the 95th percentile ELV has been met for that period. | L49: Annual | M49: =AVERAGE(M37:M48) -> 10.92333333 | O49: =MAX(O37:O48) -> 1048.96 | P49: =AVERAGE(P37:P48) -> 4.87 | Q49: =MAX(Q37:Q48) -> 16

Sheet NH3
A1: =+'Cover Page'!$B$29 -> Annual Performance Report 2020 | E1: =+'Cover Page'!$B$33 -> Kemsley Generating Station
A3: Monitoring of Ammnonia emissions | D3: Whole Installation | G3: See Notes in Cell Q3 | J3: =+A3 -> Monitoring of Ammnonia emissions | N3: Per Combustion Line | Q3: Notes:
Q4: User to add logic to complete Whole installation, Table A5:G18. From the data in Per Combustion Line, Table J6:O79, subject to No. of lines installed
A5: mg/Nm3 | B5: 1/2 Hourly Reference Periods | E5: Daily Reference Periods
A6: =+'Cover Page'!C39 -> 2020 | B6: 1/2 hourly NH3 ELV | C6: Monthly 1/2 hourly mean | D6: Highest 1/2 hourly maximum | E6: Daily NH3 ELV | F6: Monthly daily mean | G6: Highest daily maximum | J6: =+A6 -> 2020 | K6: mg/Nm3 | L6: Monthly 1/2 hourly mean | M6: Monthly 1/2 hourly maximum | N6: Monthly daily mean | O6: Monthly daily maximum
A7: Jan | B7: 0 | E7: 10 | J7: A1 | K7: Jan
A8: Feb | B8: =+B7 -> 0 | E8: =+E7 -> 10 | K8: Feb
A9: Mar | B9: =+B8 -> 0 | E9: =+E8 -> 10 | K9: Mar | Q9: Whole Installation table A5:G18:
A10: Apr | B10: 0 | E10: 10 | K10: Apr | Q10: Mean: for 1/2 hourly and daily periods calculate mean of values across all operational combustion lines for the month
A11: May | B11: 0 | E11: 10 | K11: May
A12: Jun | B12: 0 | E12: 10 | K12: Jun
A13: Jul | B13: 0 | C13: 0.24 | D13: 3.39 | E13: 10 | F13: 0.23 | G13: 0.69 | K13: Jul | L13: 0.26 | M13: 3.39 | N13: 0.25 | O13: 0.69 | Q13: Maximum: for 1/2 hourly and daily periods use the highest value across all operational combustion lines for the month
A14: Aug | B14: 0 | C14: 0.41 | D14: 2.71 | E14: 10 | F14: 0.41 | G14: 0.93 | K14: Aug | L14: 0.4 | M14: 2.47 | N14: 0.4 | O14: 0.93
A15: Sep | B15: 0 | C15: 0.64 | D15: 4.02 | E15: 10 | F15: 0.59 | G15: 1.1 | K15: Sep | L15: 0.66 | M15: 4.02 | N15: 0.62 | O15: 1.1
A16: Oct | B16: 0 | C16: 0.77 | D16: 4.55 | E16: 10 | F16: 0.77 | G16: 2.26 | K16: Oct | L16: 0.74 | M16: 3.43 | N16: 0.73 | O16: 1.48
A17: Nov | B17: 0 | C17: 0.68 | D17: 4.11 | E17: 10 | F17: 0.68 | G17: 1.64 | K17: Nov | L17: 0.87 | M17: 4.11 | N17: 0.87 | O17: 1.64
A18: Dec | B18: 0 | C18: 0.69 | D18: 4.61 | E18: 10 | F18: 0.7 | G18: 1.9 | K18: Dec | L18: 0.98 | M18: 4.22 | N18: 0.98 | O18: 1.9
K19: Annual | L19: =AVERAGE(L7:L18) -> 0.6516666667 | M19: =MAX(M7:M18) -> 4.22 | N19: =AVERAGE(N7:N18) -> 0.6416666667 | O19: =MAX(O7:O18) -> 1.9
J21: =+A6 -> 2020 | K21: mg/Nm3 | L21: Monthly 1/2 hourly mean | M21: Monthly 1/2 hourly maximum | N21: Monthly daily mean | O21: Monthly daily maximum
J22: A2 | K22: Jan
K23: Feb
K24: Mar
K25: Apr
K26: May
K27: Jun
K28: Jul | L28: 0.21 | M28: 1.05 | N28: 0.2 | O28: 0.47
K29: Aug | L29: 0.41 | M29: 2.71 | N29: 0.42 | O29: 0.86
K30: Sep | L30: 0.61 | M30: 3.99 | N30: 0.56 | O30: 1.09
K31: Oct | L31: 0.81 | M31: 4.55 | N31: 0.81 | O31: 2.26
K32: Nov | L32: 0.49 | M32: 1.5 | N32: 0.49 | O32: 0.8
K33: Dec | L33: 0.38 | M33: 4.61 | N33: 0.39 | O33: 0.89
K34: Annual | L34: =AVERAGE(L22:L33) -> 0.485 | M34: =MAX(M22:M33) -> 4.61 | N34: =AVERAGE(N22:N33) -> 0.4783333333 | O34: =MAX(O22:O33) -> 2.26
A48: Comments :
A49: An indicated ELV value of zero in the table above means that no ammonia limit is set in the permit. The reported data is from Q3 and Q4 - after plant hand-over from EPC contractor CNIM to Wheelabrator on 16th July 2020. Reports prior to this were submitted as part of the Q2 returns.
